Cogmind - Beta 9.6 *** ADVENTURER MODE // 2020.08.06 @ 18:55:25 Player: yub Result: Destroyed by H-55 Commando with Gauss Rifle Performance ------------- Evolutions (2) 1000 Regions Visited (4) 800 Robots Destroyed (24) 120 Value Destroyed (840) 840 Prototype IDs (0) 0 Alien Tech Used (0) 0 Bonus (0) 0 TOTAL SCORE: 2760 Bonus ------- None Cogmind --------- Core Integrity 0/550 Matter 300/300 Energy 99/100 System Corruption 0% Temperature Cool (18) Movement Core (300) Ox5 Location -8/Materials Parts ------- > --- POWER (1) -------- (None) > --- PROPULSION (2) --- (None) > --- UTILITY (5) ------ Large Storage Unit Weapon Shielding > --- WEAPON (3) ------- (None) > --- INVENTORY (10) --- Aluminum Leg Peak State ------------ > --- POWER ------------ Ion Engine > --- PROPULSION ------- Aluminum Leg Aluminum Leg > --- UTILITY ---------- Heat Sink Large Storage Unit Advanced Signal Interpreter Weapon Shielding > --- WEAPON ----------- Particle Gun Particle Gun Improved Light Cannon > --- INVENTORY -------- Aluminum Leg Aluminum Leg [Rating: 15] Favorites ----------- Power Ion Engine Engine Ion Engine Propulsion Light Treads Treads Light Treads Leg Aluminum Leg Utility Large Storage Unit Device Heat Sink Storage Large Storage Unit Processor Advanced Signal Interpreter Protection Weapon Shielding Weapon Medium Laser Energy Gun Medium Laser Ballistic Gun Assault Rifle Ballistic Cannon Improved Light Cannon Build | -11 -10 -10 -9 -8 ------- Run | Scr Mat Min Mat Mat Slots Evolved 4 | . . . 2 2 Power . | . . . . . Propulsion . | . . . . . Utility 3 | . . . 2 1 Weapon 1 | . . . . 1 Parts Attached 35 | 6 2 . 12 15 Power 3 | 1 . . 1 1 Engine 3 | 1 . . 1 1 Core . | . . . . . Reactor . | . . . . . Propulsion 6 | 2 . . 2 2 Treads 2 | 2 . . . . Leg 4 | . . . 2 2 Wheel . | . . . . . Hover . | . . . . . Flight . | . . . . . Utility 11 | 1 1 . 3 6 Device 2 | . . . 1 1 Storage 4 | 1 1 . 1 1 Processor 1 | . . . . 1 Hackware . | . . . . . Protection 4 | . . . 1 3 Artifact . | . . . . . Weapon 15 | 2 1 . 6 6 Energy Gun 13 | 1 1 . 6 5 Energy Cannon . | . . . . . Ballistic Gun 1 | 1 . . . . Ballistic Cannon 1 | . . . . 1 Launcher . | . . . . . Special Weapon . | . . . . . Impact Weapon . | . . . . . Slashing Weapon . | . . . . . Piercing Weapon . | . . . . . Special Melee Weapon . | . . . . . Unidentified Prototypes . | . . . . . Parts Lost 19 | . . . 3 16 Power 2 | . . . . 2 Propulsion 3 | . . . . 3 Utility 4 | . . . . 4 Weapon 10 | . . . 3 7 Highest Loss Streak 9 | . . . 1 9 Average Slot Usage (%) 80 | . 84 85 76 81 Engine 10 | . 14 14 11 7 Treads 13 | . 28 28 15 . Leg 8 | . . . 6 16 Device 3 | . . . 3 7 Storage 15 | . 14 14 17 12 Processor 2 | . . . . 6 Protection 3 | . . . . 9 Energy Gun 21 | . 24 28 22 16 Ballistic Cannon 1 | . . . . 4 Naked Turns . | . . . . . Heaviest Build 36 | 11 23 23 31 36 Greatest Support 40 | 40 40 40 40 20 Greatest Overweight (x) 5 | . . . 1 5 Average Overweight (x) . | . . . . 1 Largest Inventory Capacity 10 | 6 10 10 10 10 Average Capacity 9 | 4 7 10 10 10 Most Carried 7 | 3 6 5 6 7 Average Carried 3 | . 4 5 4 3 Final Capacity 10 | 6 10 10 10 10 Final Carried 5 | 1 5 5 5 1 Class Distribution -------------------- 65% | Mutant 19% | Scavenger-Tank 14% | Scavenger-Mutant Dominant Class ---------------- Mutant | -10/Materials Mutant | -10/Mines Mutant | -9/Materials Scavenger-Tank | -8/Materials Resources | -11 -10 -10 -9 -8 ----------- Run | Scr Mat Min Mat Mat Matter Collected 545 | 237 43 . 110 155 Remotely . | . . . . . Salvage Created 917 | . 92 . 444 381 Parts 56 | . 9 . 31 16 Haulers Intercepted . | . . . . . Recyclers Shooed . | . . . . . Parts Field Recycled . | . . . . . Retrieved Matter . | . . . . . Parts Self-Destructed . | . . . . . Prevented . | . . . . . Kills | -11 -10 -10 -9 -8 ------- Run | Scr Mat Min Mat Mat Combat Hostiles Destroyed 21 | . 2 . 11 8 Guns 15 | . 2 . 10 3 Cannons 5 | . . . . 5 AOE 1 | . . . 1 . Classes Destroyed 5 | . 2 . 2 1 Watcher 3 | . 1 . 2 . Swarmer 3 | . . . 3 . Grunt 14 | . 2 . 6 6 Duelist 1 | . . . . 1 Sentry 3 | . . . 2 1 Best Kill Streak 3 | . 1 . 3 2 Combat Bots Only 3 | . 1 . 3 2 Max Kills in Single Turn 2 | . 1 . 2 1 Gunslinging 1 | . . . 1 . Exploded 1 | . . . 1 . Melee . | . . . . . Uniques/NPCs Destroyed . | . . . . . Combat | -11 -10 -10 -9 -8 -------- Run | Scr Mat Min Mat Mat Damage Taken 2242 | . 79 . 485 1678 Core 642 | . 16 . 70 556 Absorbed by Shields . | . . . . . Core Remaining (%) 91 | 100 . 93 82 . Volleys Fired 84 | . 11 . 37 36 Largest 3 | . 2 . 2 3 Hottest 169 | . 100 . 100 169 Shots Fired 148 | . 22 . 72 54 Gun 134 | . 22 . 72 40 Cannon 14 | . . . . 14 Launcher . | . . . . . Special . | . . . . . Kinetic 14 | . . . . 14 Thermal 109 | . 22 . 56 31 Explosive . | . . . . . Electromagnetic 25 | . . . 16 9 Robot Hit Streak 33 | . 9 . 25 33 Robot Miss Streak 3 | . 1 . 1 3 Penetration Max . | . . . . . Secondary Targets 4 | . 1 . 2 1 Max Gunslinging Chain 1 | . 1 . 1 1 Shots Hit Robots 123 | . 19 . 59 45 Core Hits 48 | . 6 . 22 20 Critical Hits . | . . . . . Critical Kills . | . . . . . Critical Parts Destroyed . | . . . . . Melee Attacks . | . . . . . Impact . | . . . . . Slashing . | . . . . . Piercing . | . . . . . Sneak Attacks . | . . . . . Combat Hostiles . | . . . . . Follow-up Attacks . | . . . . . Damage Inflicted 1805 | . 223 . 801 781 Guns 1418 | . 223 . 758 437 Cannons 263 | . . . . 263 Explosions 102 | . . . 43 59 Melee . | . . . . . Ramming 22 | . . . . 22 Kinetic 263 | . . . . 263 Thermal 1145 | . 223 . 552 370 Explosive . | . . . . . Electromagnetic 375 | . . . 249 126 Impact . | . . . . . Slashing . | . . . . . Piercing . | . . . . . Highest Corruption . | . . . . . Average Corruption . | . . . . . Corruption Purged . | . . . . . Overload Shots . | . . . . . Overflow Damage 1 | . . . . 1 Projectiles . | . . . . . Explosions 1 | . . . . 1 Melee . | . . . . . Knockbacks 3 | . . . . 3 Impact . | . . . . . Kinetic 3 | . . . . 3 Secondary . | . . . . . Self-Inflicted Damage 40 | . . . . 40 Shots 1 | . . . . 1 Rammed 5 | . . . . 5 Targets Rammed 7 | . . . . 7 Kicked 2 | . . . . 2 Crushed . | . . . . . Highest Temperature 358 | . 358 . 303 154 Average Temperature 112 | . 154 . 122 65 Received Heat Transfer 1116 | . 60 . 264 792 Siege Activations . | . . . . . Robots Corrupted . | . . . . . Combat Hostiles . | . . . . . Parts Fried 1 | . . . 1 . Impact Corruptions . | . . . . . Robots Melted . | . . . . . Combat Hostiles . | . . . . . Parts Melted 4 | . 1 . 3 . Heat Transferred 2977 | . 666 . 1446 865 Parts Sabotaged . | . . . . . Parts Stolen . | . . . . . Parts Stripped . | . . . . . Power Chain Reactions 2 | . . . 1 1 Missiles Intercepted . | . . . . . Alert | -11 -10 -10 -9 -8 ------- Run | Scr Mat Min Mat Mat Peak Influence 271 | . 72 23 271 141 Average Influence 86 | . 41 23 136 82 Maximum Alert Level 1 | . . . 1 . Low Security (%) 87 | 100 100 100 67 100 Level 1 12 | . . . 32 . Level 2 . | . . . . . Level 3 . | . . . . . Level 4 . | . . . . . Level 5 . | . . . . . High Security . | . . . . . Max Security . | . . . . . Squads Dispatched 7 | . 1 . 3 3 Investigation 2 | . 1 . . 1 Extermination . | . . . . . Reinforcement 5 | . . . 3 2 Assault . | . . . . . Garrison . | . . . . . Intercept . | . . . . . Construction Impeded 1 | . . . . 1 Haulers Reinforced . | . . . . . Stealth | -11 -10 -10 -9 -8 --------- Run | Scr Mat Min Mat Mat Distress Signals 2 | . . . 2 . Communications Jammed . | . . . . . Distress Signals . | . . . . . Times Spotted 37 | . 4 . 17 16 Peak Tracking Total 6 | . 2 . 6 6 Tactical Retreats 5 | . . . 1 4 Traps | -11 -10 -10 -9 -8 ------- Run | Scr Mat Min Mat Mat Traps Triggered 1 | . 1 . . . Indirectly . | . . . . . Trap Hack Attempts . | . . . . . Triggered . | . . . . . Disarmed . | . . . . . Reprogrammed . | . . . . . Reused . | . . . . . Traps Extracted . | . . . . . Installed . | . . . . . Triggered . | . . . . . Machines | -11 -10 -10 -9 -8 ---------- Run | Scr Mat Min Mat Mat Machines Disabled . | . . . . . Max in Single Turn . | . . . . . Machines Sabotaged . | . . . . . Garrisons Compromised . | . . . . . Overloaded Fab Kills . | . . . . . Fab Network Shutdowns . | . . . . . Hacking | -11 -10 -10 -9 -8 --------- Run | Scr Mat Min Mat Mat Machines Accessed 3 | . . . 1 2 Terminals 1 | . . . 1 . Fabricators . | . . . . . Repair Stations 1 | . . . . 1 Recycling Units . | . . . . . Scanalyzers 1 | . . . . 1 Garrison Access . | . . . . . Total Hacks 11 | . . . 4 7 Successful 8 | . . . 3 5 Failed 3 | . . . 1 2 Catastrophic . | . . . . . Database Lockouts . | . . . . . Manual . | . . . . . Terminals 4 | . . . 4 . Fabricators . | . . . . . Repair Stations 4 | . . . . 4 Recycling Units . | . . . . . Scanalyzers 3 | . . . . 3 Garrison Access . | . . . . . Terminal Hacks 3 | . . . 3 . Emergency Access Points 1 | . . . 1 . Locate Traps 1 | . . . 1 . Maintenance Status 1 | . . . 1 . Fabricator Hacks . | . . . . . Repair Station Hacks 2 | . . . . 2 Scan Component 1 | . . . . 1 Repair 1 | . . . . 1 Recycling Unit Hacks . | . . . . . Scanalyzer 3 | . . . . 3 Insert Component 2 | . . . . 2 Analyze 1 | . . . . 1 Garrison Access Hacks . | . . . . . Unauthorized Hacks . | . . . . . Terminals . | . . . . . Fabricators . | . . . . . Repair Stations . | . . . . . Recycling Units . | . . . . . Scanalyzers . | . . . . . Garrison Access . | . . . . . Data Cores Recovered . | . . . . . Used . | . . . . . Hacking Detections 2 | . . . 1 1 Full Trace Events 2 | . . . 1 1 Feedback Events . | . . . . . Feedback Blocked . | . . . . . Robot Schematics Acquired . | . . . . . Robots Built . | . . . . . Matter . | . . . . . Time . | . . . . . Total Robot Build Rating . | . . . . . Part Schematics Acquired 1 | . . . . 1 Parts Built . | . . . . . Matter . | . . . . . Time . | . . . . . Total Part Build Rating . | . . . . . Parts Repaired 1 | . . . . 1 Time 26 | . . . . 26 Parts Recycled . | . . . . . Recycled Matter . | . . . . . Retrieved Matter . | . . . . . Retrieved Components . | . . . . . Parts Scanalyzed 1 | . . . . 1 Part Schematics Acquired 1 | . . . . 1 Parts Damaged . | . . . . . Bothacking | -11 -10 -10 -9 -8 ------------ Run | Scr Mat Min Mat Mat Used RIF Installer . | . . . . . Robots Hacked . | . . . . . Non-combat . | . . . . . Combat . | . . . . . Robot Hacks Applied . | . . . . . Relay Couplers Released . | . . . . . Robots Rewired . | . . . . . Allies Hacked . | . . . . . Hacks Repelled . | . . . . . Allies | -11 -10 -10 -9 -8 -------- Run | Scr Mat Min Mat Mat Total Allies . | . . . . . Largest Group . | . . . . . Highest-Rated Group . | . . . . . Highest-Rated Ally . | . . . . . Total Orders . | . . . . . Ally Attacks . | . . . . . Total Damage . | . . . . . Kills . | . . . . . Allies Corrupted . | . . . . . Allies Melted . | . . . . . Intel | -11 -10 -10 -9 -8 ------- Run | Scr Mat Min Mat Mat Robot Analysis Total . | . . . . . Derelict Logs Recovered 1 | . . 1 . . Drone Launches . | . . . . . Drone Recoveries . | . . . . . Exploration | -11 -10 -10 -9 -8 ------------- Run | Scr Mat Min Mat Mat Turns Passed 1634 | 65 241 196 620 512 Spaces Moved 786 | 37 123 123 269 234 Core 11 | 6 . . . 5 Treads 468 | 31 123 123 191 . Legs 307 | . . . 78 229 Wheels . | . . . . . Hover . | . . . . . Flight . | . . . . . Fastest Speed 50 | 50 160 160 150 150 Average Speed 156 | 142 160 160 157 153 Slowest Speed 300 | 160 160 160 160 300 Overloaded Moves . | . . . . . Propulsion Burnouts . | . . . . . Robots Hopped . | . . . . . Cave-ins Triggered . | . . . . . Exploration Rate (%) 20 | 4 20 40 24 16 Regions Visited 4 Branch Regions 1 Pre-discovered Areas . | . . . . . Known Exits Taken . | . . . . . Unknown Exits Taken 4 | 1 1 1 1 . Scrap Searched . | . . . . . Spaces Dug . | . . . . . Terrain Destroyed 14 | . . . 8 6 Melee . | . . . . . Projectile . | . . . . . AOE 14 | . . . 8 6 Actions | -11 -10 -10 -9 -8 --------- Run | Scr Mat Min Mat Mat Total 1047 | 50 147 122 392 336 Wait 93 | 1 . . 65 27 Move 782 | 36 122 122 268 234 Hop . | . . . . . Pick Up 34 | 7 8 . 8 11 Fast Attach . | . . . . . Attach 26 | 6 1 . 6 13 Detach 1 | . . . . 1 Swap 9 | . 1 . 6 2 Drop 11 | . 4 . 2 5 Fire 84 | . 11 . 37 36 Melee . | . . . . . Ram 2 | . . . . 2 Kick 5 | . . . . 5 Crush . | . . . . . Escape Stasis . | . . . . . Rewire . | . . . . . Trap . | . . . . . Miscellaneous . | . . . . . Route ------- -11/Scrapyard -10/Materials -10/Mines -9/Materials -8/Materials History --------- Turn | Location | Event 5 | -11/Scrapyard | Discovered new exit (range 15) 66 | -11/Scrapyard | Entered Materials 66 | -10/Materials | Discovered new exit (range 9) 278 | -10/Materials | Met 8R-AWN 305 | -10/Materials | Build established: Mutant 307 | -10/Materials | Entered Mines 308 | -10/Mines | Assembled infested the area 309 | -10/Mines | Followed 8R-AWN into the Mines 313 | -10/Mines | Assisted by a Guerilla fighting off Assembled 355 | -10/Mines | Learned Materials garrison access intel 464 | -10/Mines | Discovered new exit (range 9) 503 | -10/Mines | Entered Materials 503 | -9/Materials | Evolved 2 slots: Utility x2 1104 | -9/Materials | Discovered new exit (range 11) 1123 | -9/Materials | Entered another Materials area 1123 | -8/Materials | Evolved 2 slots: Utility x1, Weapon x1 1124 | -8/Materials | Loaded intel: 1 garrison access location 1191 | -8/Materials | Repaired Med. Battery 1396 | -8/Materials | Lost 7 parts (1p2u4w) 1615 | -8/Materials | Core integrity fell below 50% 1630 | -8/Materials | Core integrity fell below 20% 1635 | -8/Materials | Destroyed by H-55 Commando with Gauss Rifle Last Messages --------------- 01604_ Particle Gun destroyed. 01605_ Slug penetrates Wall. 01611_ Acquired 16 matter. 01611_ Penetrated by Slug. 01612_ Kicked H-55 Commando out of the way. 01614_ Slammed into H-55 Commando. 01614_ Penetrated by Slug. 01615_ Kicked H-55 Commando out of the way. 01617_ Aluminum Leg destroyed. 01617_ Slammed into H-55 Commando. 01617_ Slug penetrates Wall. 01620_ Penetrated by Slug. 01620_ Atomic Centrifuge disabled. 01623_ Penetrated by Slug. 01626_ Slammed into H-55 Commando. 01626_ Adv. Signal Interpreter permanently disabled. 01626_ Destabilizing: Short circuit. 01629_ Slug penetrates G-47 Trooper. 01631_ Broken Adv. Signal Interpreter destroyed. 01635_ Penetrated by Slug. Map ----- +----------------------------------------------------+ | ???????????###########??# #???????????? | | ???????????# #??# #???????????? | | ???????????# """ #??# #???????????? | | ???????????# """"" #??# #???????????? | | ???????????# """"" #?## ##??????????? | | ???????????# """"" #?# #??????????? | | ???????????# """ #?# "" /#??????????? | | ???????????# #?# T #??????????? | | ???????????# #?# #??????????? | | ???????#########"#####?# ! #??????????? | | ?????? ! # ####?## ##??????????? | | ?????# """ # # """ # #???????????? | | ?????# """ + # "Y" + #???????????? | | ?????#! """ # # # #???????????? | | ?????? # # ??# #???????????? | | ?????# ! ?# ##????# #???????????? | | ?????# [?# ####### #???????????? | | ?????#! ! ??# #= # #???????????? | | ?????# ??#! # # #???????????? | | ?????######???# # # #???????????? | | ??????????????# # """ # #???????????? | | ??????????????# # """ # %#???????????? | | ??????????????# %=# """ + #???????????? | | ???????#??????# !%# # #???????????? | | ???????# ????# Y=####### #???????????? | | ???????# """??# @%g]] == % #???????????? | | ???????# """ # %!!h% = * #???????????? | | ???????# """ + g%!] #???????????? | | ???????# # %##;######????????? | | ???????######## *# #????????? | | ???????# """ # # "S #????????? | | ???????# "R" # # """ #????????? | | ???????# " " + # "" ! #????????? | | ???????# # "" # #????????? | | ???????# # """ ###+#####????????? | | ???????#! # """ #???????????? | | ???????######## #???????????? | | ??????????????# #???????????? | | ??????????????###+## ##+#+#####???????? | | ???????????????????# # #???????? | | ???????????????????##### """ #???????? | | ???????????????????????# """ #???????? | | ???????????????????????# """ #???????? | | ???????????????????????# #???????? | | ???????????????????????# """ #???????? | | ???????????????????????# """ #???????? | | ???????????????????????# """ #???????? | | ???????????????????????# ! #???????? | | ???????????????????????##########???????? | | ????????????????????????????????????????? | +----------------------------------------------------+ Best States ------------- Heat Dissipation 41 Energy Generation 10 Energy Capacity 450 Matter Stores 300 Matter Capacity 300 Sight Range 16 Terrain Scan Density 10 Armor Coverage 150 Resistance: KI 20 Resistance: TH 20 Resistance: EX 20 Resistance: EM 20 Resistance: I 20 Resistance: S 20 Resistance: P 20 Weapon Shielding 33 Evasion (%) 40 Recoil Reduction 2 Offensive Hacking 10 Item Schematics ----------------- Aluminum Leg | -8/Materials | Scanalyzed Robot Schematics ------------------ None Fabricated ------------ Nothing Alien Tech Used ----------------- None Achievements -------------- None Challenges ------------ None Game ------ Seed StructuralShockReplicator Manual? 0 Play Time 00:17:16 Cumulative 8.5 hours Start 2020.08.06 @ 18:38:36 End 2020.08.06 @ 18:55:25 Sessions 1 Manual Loads 0 Difficulty Adventurer Special Mode None Game No. 23 Rogue 17 Adventurer 6 Explorer 0 Win Type - Total 0 Types 0/0/0/0/0/0/0 Lore% 6 Gallery% 16 Achievement% 15 Wizard Run 0 Options --------- ASCII 0 Keyboard 0 Movement Mouse Keybinds 0 Fullscreen 1 Font 18/SmallcapsGlow Map View 76x50 Tactical HUD 1 Map Filters NONE Filters NONE Steam 1 RUN: 974a78ff-5f65-42eb-b35b-593425e99a9e